fUSD/lending_fUSD_20250511
["ID","MTS","AMOUNT","RATE_DAILY","PERIOD"]
[360687268,1746929445947,-296.61744962,0.00019888,2]
[360687269,1746929445958,-401.8387901,0.00019888,2]
[360687270,1746929445969,-525.75772522,0.00019888,2]
[360687271,1746929445980,-586.11,0.00019888,2]
[360687272,1746929445990,-401.23212261,0.00019888,2]
[360687273,1746929446001,-404.57141626,0.00019888,2]
[360687274,1746929446011,-400.0,0.00019888,2]
[360687275,1746929446281,-403.8004693,0.00019888,2]
[360687276,1746929446301,-503.02137709,0.00019888,2]
[360687277,1746929446310,-405.67026484,0.00019888,2]
[360687278,1746929446320,-419.71471636,0.00019888,2]
[360687279,1746929446330,-400.0,0.00019888,2]
[360687280,1746929446340,-405.66997257,0.00019888,2]
[360687281,1746929446349,-401.32433389,0.00019888,2]
[360687282,1746929446359,-410.69056063,0.00019888,2]
[360687283,1746929446368,-409.35875798,0.00019888,2]
[360687284,1746929446377,-400.0,0.00019888,2]
[360687285,1746929446386,-405.48272432,0.00019888,2]
[360687286,1746929446398,-400.91569248,0.00019888,2]
[360687288,1746929446407,-266.96322458,0.00019888,2]
[360687290,1746929446417,-401.85965002,0.00019888,2]
[360687292,1746929446427,-412.06643382,0.00019888,2]
[360687294,1746929446437,-404.01359922,0.00019888,2]
[360687295,1746929446446,-405.13194244,0.00019888,2]
[360687296,1746929446457,-401.13638877,0.00019888,2]
[360687297,1746929446467,-409.05531636,0.00019888,2]
[360687298,1746929446476,-462.85777906,0.00019888,2]
[360687299,1746929446488,-349.66468251,0.00019888,2]
[360687300,1746929446498,-503.08368919,0.00019888,2]
[360687301,1746929446507,-400.0,0.00019888,2]
[360687303,1746929446516,-400.0,0.00019888,2]
[360687305,1746929446525,-402.94689321,0.00019888,2]
[360687306,1746929446536,-411.07129299,0.00019888,2]
[360687307,1746929446546,-411.24,0.00019888,2]
[360687308,1746929446556,-406.39493138,0.00019888,2]
[360687309,1746929446566,-400.0,0.00019888,2]
[360687311,1746929446575,-403.47232083,0.00019888,2]
[360687312,1746929446584,-400.87546267,0.00019888,2]
[360687313,1746929446593,-400.0,0.00019888,2]
[360687314,1746929446602,-400.0,0.00019888,2]
[360687315,1746929446611,-401.06243258,0.00019888,2]
[360687316,1746929446620,-403.5293768,0.00019888,2]
[360687317,1746929446630,-400.0,0.00019888,2]
[360687318,1746929446639,-400.0,0.00019888,2]
[360687319,1746929446648,-502.15660642,0.00019888,2]
[360687320,1746929446657,-400.0,0.00019888,2]
[360687321,1746929446666,-422.43944756,0.00019888,2]
[360687322,1746929446676,-414.94561827,0.00019888,2]
[360687323,1746929446686,-168.88922845,0.00019888,2]
[360687324,1746929446695,-405.22416963,0.00019888,2]
[360687325,1746929446704,-400.0,0.00019888,2]
[360687326,1746929446712,-400.0,0.00019888,2]
[360687327,1746929446722,-401.54534696,0.00019888,2]
[360687328,1746929446731,-407.18460818,0.00019888,2]
[360687329,1746929446740,-407.13385467,0.00019888,2]
[360687330,1746929446748,-401.91502097,0.00019888,2]
[360687331,1746929446757,-368.84803766,0.00019888,2]
[360687332,1746929446767,-402.4681349,0.00019888,2]
[360687333,1746929446775,-404.59418259,0.00019888,2]
[360687334,1746929446784,-406.93881179,0.00019888,2]
[360687335,1746929446793,-412.01274737,0.00019888,2]
[360687336,1746929446802,-408.03702719,0.00019888,2]
[360687337,1746929446811,-548.96410134,0.00019888,2]
[360687338,1746929446820,-400.0,0.00019888,2]
[360687339,1746929446829,-400.0,0.00019888,2]
[360687340,1746929446838,-400.0,0.00019888,2]
[360687341,1746929446847,-404.06632559,0.00019888,2]
[360687342,1746929446856,-400.0,0.00019888,2]
[360687343,1746929446865,-400.0,0.00019888,2]
[360687344,1746929446874,-400.0,0.00019888,2]
[360687345,1746929446883,-404.43769835,0.00019888,2]
[360687346,1746929446894,-400.0,0.00019888,2]
[360687347,1746929446903,-403.84552976,0.00019888,2]
[360687348,1746929446912,-400.0,0.00019888,2]
[360687349,1746929446921,-400.0,0.00019888,2]
[360687350,1746929446931,-403.60466447,0.00019888,2]
[360687351,1746929446940,-404.13704624,0.00019888,2]
[360687352,1746929446949,-254.47316854,0.00019888,2]
[360687353,1746929446958,-400.0,0.00019888,2]
[360687354,1746929446967,-410.04268681,0.00019888,2]
[360687355,1746929446976,-404.76712008,0.00019888,2]
[360687356,1746929446985,-411.1909688,0.00019888,2]
[360687357,1746929446995,-407.49576897,0.00019888,2]
[360687358,1746929447004,-473.57020222,0.00019888,2]
[360687359,1746929447013,-400.0,0.00019888,2]
[360687360,1746929447023,-380.47997356,0.00019888,2]
[360687361,1746929447033,-400.0,0.00019888,2]
[360687362,1746929447042,-404.98697311,0.00019888,2]
[360687363,1746929447051,-400.0,0.00019888,2]
[360687364,1746929447060,-407.15323211,0.00019888,2]
[360687365,1746929447070,-400.0,0.00019888,2]
[360687366,1746929447079,-361.85420225,0.00019888,2]
[360687367,1746929447088,-403.25181584,0.00019888,2]
[360687368,1746929447098,-405.75127797,0.00019888,2]
[360687369,1746929447107,-401.4143552,0.00019888,2]
[360687370,1746929447116,-411.78800056,0.00019888,2]
[360687371,1746929447125,-500.0,0.00019888,2]
[360687372,1746929447134,-370.29433082,0.00019888,2]
[360687373,1746929447144,-400.0,0.00019888,2]
[360687374,1746929447153,-409.42910959,0.00019888,2]
[360687375,1746929447162,-400.0,0.00019888,2]
[360687376,1746929447172,-406.23257453,0.00019888,2]
[360687377,1746929447183,-402.39413206,0.00019888,2]
[360687378,1746929447192,-397.01224617,0.00019888,2]
[360687379,1746929447201,-400.0,0.00019888,2]
[360687380,1746929447211,-400.0,0.00019888,2]
[360687381,1746929447220,-408.62094388,0.00019888,2]
[360687382,1746929447229,-400.0,0.00019888,2]
[360687383,1746929447239,-400.0,0.00019888,2]
[360687384,1746929447248,-400.0,0.00019888,2]
[360687385,1746929447258,-400.0,0.00019888,2]
[360687386,1746929447267,-400.0,0.00019888,2]
[360687387,1746929447276,-402.29627047,0.00019888,2]
[360687388,1746929447285,-400.0,0.00019888,2]
[360687389,1746929447295,-400.0,0.00019888,2]
[360687390,1746929447304,-405.35000894,0.00019888,2]
[360687391,1746929447313,-407.04996048,0.00019888,2]
[360687392,1746929447322,-409.35506513,0.00019888,2]
[360687393,1746929447332,-400.0,0.00019888,2]
[360687394,1746929447340,-407.39545967,0.00019888,2]
[360687395,1746929447349,-1130.75,0.00019888,2]
[360687396,1746929447359,-401.06434139,0.00019888,2]
[360687397,1746929447368,-400.86484897,0.00019888,2]
[360687398,1746929447377,-404.69867125,0.00019888,2]
[360687399,1746929447386,-400.0,0.00019888,2]
[360687400,1746929447395,-400.0,0.00019888,2]
[360687401,1746929447404,-500.0,0.00019888,2]
[360687402,1746929447415,-408.13232918,0.00019888,2]
[360687403,1746929447424,-400.0,0.00019888,2]
[360687404,1746929447435,-410.84056679,0.00019888,2]
[360687405,1746929447444,-396.63418577,0.00019888,2]
[360687406,1746929447454,-400.0,0.00019888,2]
[360687407,1746929447463,-402.64610038,0.00019888,2]
[360687408,1746929447472,-400.0,0.00019888,2]
[360687409,1746929447481,-400.0,0.00019888,2]
[360687410,1746929447492,-403.64219718,0.00019888,2]
[360687411,1746929447503,-400.0,0.00019888,2]
[360687412,1746929447512,-400.0,0.00019888,2]
[360687413,1746929447521,-1374.67,0.00019888,2]
[360687414,1746929447531,-400.0,0.00019888,2]
[360687415,1746929447539,-400.0,0.00019888,2]
[360687416,1746929447549,-482.13788263,0.00019888,2]
[360687417,1746929447558,-492.38874004,0.00019888,2]
[360687418,1746929447567,-400.0,0.00019888,2]
[360687419,1746929447576,-414.85650722,0.00019888,2]
[360687420,1746929447585,-171.99230069,0.00019888,2]
[360687421,1746929447594,-520.19417666,0.00019888,2]
[360687422,1746929447603,-400.0,0.00019888,2]
[360687423,1746929447612,-400.0,0.00019888,2]
[360687424,1746929447622,-400.0,0.00019888,2]
[360687425,1746929447631,-400.0,0.00019888,2]
[360687426,1746929447640,-495.77,0.00019888,2]
[360687427,1746929447649,-404.74,0.00019888,2]
[360687428,1746929447658,-400.0,0.00019888,2]
[360687429,1746929447668,-400.0,0.00019888,2]
[360687430,1746929447676,-414.61304683,0.00019888,2]
[360687431,1746929447686,-426.07363924,0.00019888,2]
[360687432,1746929447695,-400.0,0.00019888,2]
[360687433,1746929447704,-408.30097148,0.00019888,2]
[360687434,1746929447713,-410.40439804,0.00019888,2]
[360687435,1746929447722,-490.57415066,0.00019888,2]
[360687436,1746929447731,-554.07,0.00019888,2]
[360687437,1746929447742,-407.27120518,0.00019888,2]
[360687438,1746929447751,-438.76362888,0.00019888,2]
[360687439,1746929447760,-412.24102108,0.00019888,2]
[360687440,1746929447770,-410.33574255,0.00019888,2]
[360687441,1746929447779,-400.0,0.00019888,2]
[360687442,1746929447788,-402.58120063,0.00019888,2]
[360687443,1746929447797,-407.62867214,0.00019888,2]
[360687444,1746929447807,-400.0,0.00019888,2]
[360687445,1746929447816,-405.536133,0.00019888,2]
[360687446,1746929447825,-400.0,0.00019888,2]
[360687447,1746929447834,-400.0,0.00019888,2]
[360687448,1746929447844,-435.8553554,0.00019888,2]
[360687449,1746929447853,-410.11835575,0.00019888,2]
[360687450,1746929447863,-400.0,0.00019888,2]
[360687451,1746929447872,-400.0,0.00019888,2]
[360687452,1746929447882,-403.93119571,0.00019888,2]
[360687453,1746929447891,-403.21284557,0.00019888,2]
[360687454,1746929447900,-450.09650782,0.00019888,2]
[360687455,1746929447910,-150.68118088,0.00019888,2]
[360687456,1746929447919,-400.0,0.00019888,2]
[360687457,1746929447929,-400.57117303,0.00019888,2]
[360687458,1746929447938,-400.0,0.00019888,2]
[360687459,1746929447947,-400.0,0.00019888,2]
[360687460,1746929447956,-400.0,0.00019888,2]
[360687461,1746929447965,-393.21191153,0.00019888,2]
[360687462,1746929447974,-405.98775577,0.00019888,2]
[360687463,1746929447983,-401.15229358,0.00019888,2]
[360687464,1746929447991,-400.0,0.00019888,2]
[360687465,1746929448001,-400.0,0.00019888,2]
[360687466,1746929448010,-400.0,0.00019888,2]
[360687467,1746929448019,-412.87891309,0.00019888,2]
[360687468,1746929448028,-402.207544,0.00019888,2]
[360687469,1746929448037,-505.31271383,0.00019888,2]
[360687470,1746929448046,-400.0,0.00019888,2]
[360687471,1746929448055,-407.01661973,0.00019888,2]
[360687472,1746929448065,-417.99669882,0.00019888,2]
[360687473,1746929448074,-438.313279,0.00019888,2]
[360687474,1746929448083,-400.0,0.00019888,2]
[360687475,1746929448092,-400.0,0.00019888,2]
[360687476,1746929448102,-512.94,0.00019888,2]
[360687477,1746929448110,-400.0,0.00019888,2]
[360687478,1746929448119,-400.0,0.00019888,2]
[360687479,1746929448128,-430.81655707,0.00019888,2]
[360687480,1746929448137,-401.03085462,0.00019888,2]
[360687481,1746929448147,-400.0,0.00019888,2]
[360687482,1746929448156,-400.84126429,0.00019888,2]
[360687483,1746929448167,-400.0,0.00019888,2]
[360687484,1746929448177,-195.27786809,0.00019888,2]
[360687485,1746929448187,-402.47582256,0.00019888,2]
[360687486,1746929448196,-508.5149358,0.00019888,2]
[360687487,1746929448205,-406.16574542,0.00019888,2]
[360687488,1746929448215,-528.51639279,0.00019888,2]
[360687489,1746929448225,-521.58159127,0.00019888,2]
[360687490,1746929448234,-400.0,0.00019888,2]
[360687491,1746929448244,-400.0,0.00019888,2]
[360687492,1746929448253,-412.0918219,0.00019888,2]
[360687493,1746929448262,-400.0,0.00019888,2]
[360687494,1746929448272,-412.56334777,0.00019888,2]
[360687495,1746929448282,-499.54,0.00019888,2]
[360687496,1746929448291,-400.0,0.00019888,2]
[360687497,1746929448301,-400.0,0.00019888,2]
[360687498,1746929448311,-403.81639556,0.00019888,2]
[360687499,1746929448320,-400.0,0.00019888,2]
[360687500,1746929448330,-400.0,0.00019888,2]
[360687501,1746929448340,-401.48118832,0.00019888,2]
[360687502,1746929448349,-400.0,0.00019888,2]
[360687503,1746929448359,-400.54954639,0.00019888,2]
[360687504,1746929448368,-404.2596953,0.00019888,2]
[360687505,1746929448378,-402.05751311,0.00019888,2]
[360687506,1746929448387,-385.0,0.00019888,2]
[360687507,1746929448397,-400.0,0.00019888,2]
[360687508,1746929448407,-403.96622966,0.00019888,2]
[360687509,1746929448416,-412.59773553,0.00019888,2]
[360687510,1746929448426,-403.17243444,0.00019888,2]
[360687511,1746929448437,-403.38852268,0.00019888,2]
[360687512,1746929448447,-400.0,0.00019888,2]
[360687513,1746929448456,-302.09543892,0.00019888,2]
[360687514,1746929448466,-401.28529751,0.00019888,2]
[360687515,1746929448476,-404.81081284,0.00019888,2]
[360687516,1746929448486,-1215.92,0.00019888,2]
[360687517,1746929448501,-464.09324827,0.00019888,2]
[360687518,1746929448511,-400.0,0.00019888,2]
[360687519,1746929448520,-400.0,0.00019888,2]
[360687520,1746929448529,-409.15801341,0.00019888,2]
[360687521,1746929448540,-400.0,0.00019888,2]
[360687522,1746929448549,-400.0,0.00019888,2]
[360687523,1746929448559,-400.0,0.00019888,2]
[360687524,1746929448569,-400.0,0.00019888,2]
[360687525,1746929448578,-406.09029165,0.00019888,2]
[360687526,1746929448588,-400.0,0.00019888,2]
[360687527,1746929448598,-406.46525029,0.00019888,2]
[360687528,1746929448607,-400.0,0.00019888,2]
[360687529,1746929448617,-412.49944141,0.00019888,2]
[360687530,1746929448627,-400.0,0.00019888,2]
[360687531,1746929448636,-404.0147186,0.00019888,2]
[360687532,1746929448646,-400.0,0.00019888,2]
[360687533,1746929448655,-400.0,0.00019888,2]
[360687534,1746929448665,-411.72474183,0.00019888,2]
[360687535,1746929448675,-400.0,0.00019888,2]
[360687536,1746929448686,-483.96244058,0.00019888,2]
[360687537,1746929448695,-400.0,0.00019888,2]
[360687538,1746929448704,-400.0,0.00019888,2]
[360687539,1746929448714,-426.9181882,0.00019888,2]
[360687540,1746929448724,-400.0,0.00019888,2]
[360687541,1746929448735,-513.4536818,0.00019888,2]
[360687542,1746929448744,-400.0,0.00019888,2]
[360687543,1746929448754,-407.07668002,0.00019888,2]
[360687544,1746929448763,-400.0,0.00019888,2]
[360687545,1746929448773,-401.03187896,0.00019888,2]
[360687546,1746929448782,-411.04072212,0.00019888,2]
[360687547,1746929448791,-400.0,0.00019888,2]
[360687548,1746929448801,-400.0,0.00019888,2]
[360687549,1746929448810,-403.24638275,0.00019888,2]
[360687550,1746929448820,-161.12405094,0.00019888,2]
[360687551,1746929448830,-411.78376906,0.00019888,2]
[360687552,1746929448839,-406.96038793,0.00019888,2]
[360687553,1746929448849,-401.55872465,0.00019888,2]
[360687554,1746929448858,-400.0,0.00019888,2]
[360687555,1746929448868,-400.0,0.00019888,2]
[360687556,1746929448878,-400.0,0.00019888,2]
[360687557,1746929448887,-401.16289702,0.00019888,2]
[360687558,1746929448896,-401.62035272,0.00019888,2]
[360687559,1746929448906,-400.0,0.00019888,2]
[360687560,1746929448916,-400.0,0.00019888,2]
[360687561,1746929448926,-405.15700404,0.00019888,2]
[360687562,1746929448937,-412.23493911,0.00019888,2]
[360687563,1746929448947,-402.01947021,0.00019888,2]
[360687564,1746929448956,-930.29,0.00019888,2]
[360687565,1746929448966,-400.0,0.00019888,2]
[360687566,1746929448975,-400.0,0.00019888,2]
[360687567,1746929448984,-400.0,0.00019888,2]
[360687568,1746929448993,-400.0,0.00019888,2]
[360687569,1746929449003,-400.0,0.00019888,2]
[360687570,1746929449012,-405.66792712,0.00019888,2]
[360687571,1746929449022,-411.46078586,0.00019888,2]
[360687572,1746929449032,-400.0,0.00019888,2]
[360687573,1746929449041,-400.0,0.00019888,2]
[360687574,1746929449051,-400.0,0.00019888,2]
[360687575,1746929449061,-400.0,0.00019888,2]
[360687576,1746929449071,-22278.8,0.00019888,2]
[360687577,1746929449080,-406.9899754,0.00019888,2]
[360687578,1746929449090,-400.0,0.00019888,2]
[360687579,1746929449101,-400.0,0.00019888,2]
[360687580,1746929449110,-400.0,0.00019888,2]
[360687581,1746929449120,-400.0,0.00019888,2]
[360687582,1746929449130,-400.0,0.00019888,2]
[360687583,1746929449140,-400.84975517,0.00019888,2]
[360687584,1746929449150,-400.0,0.00019888,2]
[360687585,1746929449160,-400.0,0.00019888,2]
[360687586,1746929449170,-883.22,0.00019888,2]
[360687587,1746929449181,-400.0,0.00019888,2]
[360687588,1746929449191,-400.0,0.00019888,2]
[360687589,1746929449200,-407.72459898,0.00019888,2]
[360687590,1746929449210,-459.74,0.00019888,2]
[360687591,1746929449219,-400.0,0.00019888,2]
[360687592,1746929449229,-404.44553482,0.00019888,2]
[360687593,1746929449238,-400.0,0.00019888,2]
[360687594,1746929449248,-455.54,0.00019888,2]
[360687595,1746929449257,-400.0,0.00019888,2]
[360687596,1746929449267,-400.0,0.00019888,2]
[360687597,1746929449277,-540.25993043,0.00019888,2]
[360687598,1746929449287,-413.10114499,0.00019888,2]
[360687599,1746929449296,-404.53083735,0.00019888,2]
[360687600,1746929449305,-504.86388255,0.00019888,2]
[360687601,1746929449315,-400.0,0.00019888,2]
[360687602,1746929449324,-481.41,0.00019888,2]
[360687603,1746929449334,-400.0,0.00019888,2]
[360687604,1746929449502,-400.0,0.00019888,2]
[360687605,1746929449512,-400.0,0.00019888,2]
[360687606,1746929449522,-410.39615679,0.00019888,2]
[360687607,1746929449532,-408.95941925,0.00019888,2]
[360687608,1746929449542,-470.83681643,0.00019888,2]
[360687609,1746929449552,-400.0,0.00019888,2]
[360687610,1746929449561,-400.0,0.00019888,2]
[360687611,1746929449571,-400.0,0.00019888,2]
[360687612,1746929449580,-400.0,0.00019888,2]
[360687613,1746929449589,-400.0,0.00019888,2]
[360687614,1746929449599,-400.0,0.00019888,2]
[360687615,1746929449608,-400.0,0.00019888,2]
[360687616,1746929449618,-400.0,0.00019888,2]
[360687617,1746929449627,-400.0,0.00019888,2]
[360687618,1746929449637,-830.57,0.00019888,2]
[360687619,1746929449646,-408.30813277,0.00019888,2]
[360687620,1746929449657,-2022.80956379,0.00019888,2]
[360687621,1746929449666,-400.0,0.00019888,2]
[360687622,1746929449676,-400.0,0.00019888,2]
[360687623,1746929449688,-407.56526309,0.00019888,2]
[360687624,1746929449699,-402.497514,0.00019888,2]
[360687625,1746929449708,-400.0,0.00019888,2]
[360687626,1746929449718,-400.0,0.00019888,2]
[360687627,1746929449727,-400.0,0.00019888,2]
[360687628,1746929449737,-400.0,0.00019888,2]
[360687629,1746929449747,-400.0,0.00019888,2]
[360687630,1746929449757,-407.52967831,0.00019888,2]
[360687631,1746929449766,-400.0,0.00019888,2]
[360687632,1746929449775,-400.0,0.00019888,2]
[360687633,1746929449784,-400.0,0.00019888,2]
[360687634,1746929449794,-267.11915926,0.00019888,2]
[360687635,1746929449803,-400.0,0.00019888,2]
[360687636,1746929449812,-401.60996863,0.00019888,2]
[360687637,1746929449822,-400.0,0.00019888,2]
[360687638,1746929449832,-410.81597204,0.00019888,2]
[360687639,1746929449841,-400.0,0.00019888,2]
[360687640,1746929449850,-400.0,0.00019888,2]
[360687641,1746929449860,-408.85886614,0.00019888,2]
[360687642,1746929449870,-403.70597461,0.00019888,2]
[360687643,1746929449879,-403.24131704,0.00019888,2]
[360687644,1746929449889,-400.0,0.00019888,2]
[360687645,1746929449898,-510.14,0.00019888,2]
[360687646,1746929449908,-402.18261754,0.00019888,2]
[360687647,1746929449917,-400.52982306,0.00019888,2]
[360687648,1746929449927,-400.0,0.00019888,2]
[360687649,1746929449939,-407.27071808,0.00019888,2]
[360687650,1746929449949,-400.0,0.00019888,2]
[360687651,1746929449958,-406.51578195,0.00019888,2]
[360687652,1746929449968,-400.0,0.00019888,2]
[360687653,1746929449977,-400.0,0.00019888,2]
[360687654,1746929449987,-470.98855156,0.00019888,2]
[360687655,1746929449997,-404.8355398,0.00019888,2]
[360687656,1746929450007,-400.0,0.00019888,2]
[360687657,1746929450016,-412.21178331,0.00019888,2]
[360687658,1746929450026,-400.0,0.00019888,2]
[360687659,1746929450035,-400.0,0.00019888,2]
[360687660,1746929450044,-400.0,0.00019888,2]
[360687661,1746929450054,-400.0,0.00019888,2]
[360687662,1746929450063,-410.25335674,0.00019888,2]
[360687663,1746929450072,-406.41250269,0.00019888,2]
[360687664,1746929450083,-401.77413496,0.00019888,2]
[360687665,1746929450093,-399.18877953,0.00019888,2]
[360687666,1746929450102,-515.76844025,0.00019888,2]
[360687667,1746929450112,-400.0,0.00019888,2]
[360687668,1746929450121,-400.0,0.00019888,2]
[360687669,1746929450131,-400.0,0.00019888,2]
[360687670,1746929450140,-400.0,0.00019888,2]
[360687671,1746929450150,-421.68861597,0.00019888,2]
[360687672,1746929450161,-469.57,0.00019888,2]
[360687673,1746929450170,-411.68869488,0.00019888,2]
[360687674,1746929450181,-400.0,0.00019888,2]
[360687675,1746929450191,-400.0,0.00019888,2]
[360687676,1746929450200,-408.43426981,0.00019888,2]
[360687677,1746929450209,-400.0,0.00019888,2]
[360687678,1746929450218,-403.6834351,0.00019888,2]
[360687679,1746929450228,-242.28553039,0.00019888,2]
[360687680,1746929450238,-401.37707672,0.00019888,2]
[360687681,1746929450247,-229.78508357,0.00019888,2]
[360687682,1746929450257,-408.90331804,0.00019888,2]
[360687683,1746929450267,-472.94716875,0.00019888,2]
[360687684,1746929450278,-500.0,0.00019888,2]
[360687685,1746929450287,-412.87893579,0.00019888,2]
[360687686,1746929450297,-400.0,0.00019888,2]
[360687687,1746929450307,-403.92312442,0.00019888,2]
[360687688,1746929450317,-472.04750089,0.00019888,2]
[360687689,1746929450326,-400.0,0.00019888,2]
[360687690,1746929450336,-400.0,0.00019888,2]
[360687691,1746929450346,-464.54,0.00019888,2]
[360687692,1746929450356,-451.81560084,0.00019888,2]
[360687693,1746929450366,-400.0,0.00019888,2]
[360687694,1746929450375,-400.0,0.00019888,2]
[360687695,1746929450385,-400.0,0.00019888,2]
[360687696,1746929450395,-400.0,0.00019888,2]
[360687697,1746929450405,-402.53270875,0.00019888,2]
[360687698,1746929450414,-400.0,0.00019888,2]
[360687699,1746929450423,-400.0,0.00019888,2]
[360687700,1746929450435,-400.0,0.00019888,2]
[360687701,1746929450445,-400.0,0.00019888,2]
[360687702,1746929450455,-400.0,0.00019888,2]
[360687703,1746929450464,-400.0,0.00019888,2]
[360687704,1746929450474,-672.34,0.00019888,2]
[360687705,1746929450484,-400.0,0.00019888,2]
[360687706,1746929450498,-494.69,0.00019888,2]
[360687707,1746929450508,-516.0346605,0.00019888,2]
[360687708,1746929450517,-502.83825937,0.00019888,2]
[360687709,1746929450527,-403.48003074,0.00019888,2]
[360687710,1746929450537,-414.834444,0.00019888,2]
[360687711,1746929450547,-400.0,0.00019888,2]
[360687712,1746929450556,-405.18783881,0.00019888,2]
[360687713,1746929450566,-400.0,0.00019888,2]
[360687714,1746929450576,-400.0,0.00019888,2]
[360687715,1746929450586,-400.0,0.00019888,2]
[360687716,1746929450595,-400.0,0.00019888,2]
[360687717,1746929450606,-408.22915399,0.00019888,2]
[360687718,1746929450615,-400.0,0.00019888,2]
[360687719,1746929450625,-400.0,0.00019888,2]
[360687720,1746929450635,-401.00133027,0.00019888,2]
[360687721,1746929450644,-408.51732215,0.00019888,2]
[360687722,1746929450654,-402.8393954,0.00019888,2]
[360687723,1746929450664,-504.60617246,0.00019888,2]
[360687724,1746929450674,-400.0,0.00019888,2]
[360687725,1746929450687,-400.0,0.00019888,2]
[360687726,1746929450697,-1677.61,0.00019888,2]
[360687727,1746929450706,-407.40846463,0.00019888,2]
[360687728,1746929450716,-221.31928433,0.00019888,2]
[360687729,1746929450727,-497.73,0.00019888,2]
[360687730,1746929450737,-408.38295821,0.00019888,2]
[360687731,1746929450747,-409.07699651,0.00019888,2]
[360687732,1746929450757,-400.0,0.00019888,2]
[360687733,1746929450766,-406.28306039,0.00019888,2]
[360687734,1746929450776,-592.98,0.00019888,2]
[360687735,1746929450787,-400.0,0.00019888,2]
[360687736,1746929450796,-414.86720281,0.00019888,2]
[360687737,1746929450806,-400.0,0.00019888,2]
[360687738,1746929450815,-400.0,0.00019888,2]
[360687739,1746929450825,-400.0,0.00019888,2]
[360687740,1746929450835,-406.43852082,0.00019888,2]
[360687741,1746929450844,-400.0,0.00019888,2]
[360687742,1746929450854,-413.79377366,0.00019888,2]
[360687743,1746929450863,-402.54904221,0.00019888,2]
[360687744,1746929450873,-405.84842574,0.00019888,2]
[360687745,1746929450882,-405.00936045,0.00019888,2]
[360687746,1746929450891,-402.39304994,0.00019888,2]
[360687747,1746929450901,-402.24062417,0.00019888,2]
[360687748,1746929450910,-406.27467691,0.00019888,2]
[360687749,1746929450919,-400.0,0.00019888,2]
[360687750,1746929450928,-400.0,0.00019888,2]
[360687751,1746929450939,-402.87029558,0.00019888,2]
[360687752,1746929450948,-403.01863622,0.00019888,2]
[360687753,1746929450958,-400.0,0.00019888,2]
[360687754,1746929450968,-1969.27,0.00019888,2]
[360687755,1746929450977,-400.0,0.00019888,2]
[360687756,1746929450987,-400.0,0.00019888,2]
[360687757,1746929450996,-400.0,0.00019888,2]
[360687758,1746929451006,-400.0,0.00019888,2]
[360687759,1746929451016,-655.17,0.00019888,2]
[360687760,1746929451025,-334.77036921,0.00019888,2]
[360687761,1746929451035,-400.0,0.00019888,2]
[360687762,1746929451044,-400.0,0.00019888,2]
[360687763,1746929451053,-400.0,0.00019888,2]
[360687764,1746929451063,-404.32142293,0.00019888,2]
[360687765,1746929451072,-2862.314891,0.00019888,2]
[360687766,1746929451082,-400.0,0.00019888,2]
[360687767,1746929451091,-404.21387217,0.00019888,2]
[360687768,1746929451101,-400.0,0.00019888,2]
[360687769,1746929451111,-930.04,0.00019888,2]
[360687770,1746929451120,-400.0,0.00019888,2]
[360687771,1746929451129,-411.80199142,0.00019888,2]
[360687772,1746929451140,-400.0,0.00019888,2]
[360687773,1746929451150,-408.14977196,0.00019888,2]
[360687774,1746929451159,-542.69,0.00019888,2]